fUSD/lending_fUSD_20260413
["ID","MTS","AMOUNT","RATE_DAILY","PERIOD"]
[420378613,1776045091621,-1050.09,0.00039178,15]
[420378614,1776045091634,-505.63,0.00039178,15]
[420378615,1776045091644,-1417.56,0.00039178,15]
[420378616,1776045091654,-500.0,0.00039178,15]
[420378617,1776045091664,-500.0,0.00039178,15]
[420378618,1776045091675,-772.53,0.00039178,15]
[420378619,1776045091686,-500.0,0.00039178,15]
[420378620,1776045091695,-500.0,0.00039178,15]
[420378621,1776045091705,-873.24,0.00039178,15]
[420378622,1776045091715,-192.60254727,0.00039178,15]
[420378623,1776045091741,-1120.29,0.00039178,15]
[420378624,1776045091753,-500.0,0.00039178,15]
[420378625,1776045091762,-500.0,0.00039178,15]
[420378626,1776045091782,-500.0,0.00039178,15]
[420378627,1776045091798,-500.0,0.00039178,15]
[420378628,1776045091812,-500.0,0.00039178,15]
[420378629,1776045091823,-181.062741,0.00039178,15]
[420378630,1776045091839,-500.0,0.00039178,15]
[420378631,1776045091853,-500.0,0.00039178,15]
[420378632,1776045091868,-500.0,0.00039178,15]
[420378633,1776045091889,-1081.78,0.00039178,15]
[420378634,1776045091901,-725.9,0.00039178,15]
[420378635,1776045091916,-500.0,0.00039178,15]
[420378636,1776045091937,-500.0,0.00039178,15]
[420378637,1776045091946,-500.0,0.00039178,15]
[420378638,1776045091960,-622.85,0.00039178,15]
[420378639,1776045091995,-606.71,0.00039178,15]
[420378640,1776045092006,-500.0,0.00039178,15]
[420378641,1776045092017,-566.08,0.00039178,15]
[420378642,1776045092029,-500.0,0.00039178,15]
[420378643,1776045092041,-500.0,0.00039178,15]
[420378644,1776045092059,-500.0,0.00039178,15]
[420378645,1776045092068,-1634.91,0.00039178,15]
[420378646,1776045092078,-941.01,0.00039178,15]
[420378647,1776045092092,-792.94,0.00039178,15]
[420378648,1776045092115,-500.0,0.00039178,15]
[420378649,1776045092124,-500.0,0.00039178,15]
[420378650,1776045092143,-562.11,0.00039178,15]
[420378651,1776045092152,-500.0,0.00039178,15]
[420378652,1776045092168,-622.71,0.00039178,15]
[420378653,1776045092178,-718.47,0.00039178,15]
[420378654,1776045092187,-500.0,0.00039178,15]
[420378655,1776045092206,-953.51,0.00039178,15]
[420378656,1776045092217,-2222.66,0.00039178,15]
[420378657,1776045092238,-500.0,0.00039178,15]
[420378658,1776045092248,-990.01,0.00039178,15]
[420378659,1776045092257,-1669.46,0.00039178,15]
[420378660,1776045092275,-1352.92,0.00039178,15]
[420378661,1776045092285,-500.0,0.00039178,15]
[420378662,1776045092294,-1619.22,0.00039178,15]
[420378663,1776045092307,-366.26983558,0.00039178,15]
[420378664,1776045092323,-500.0,0.00039178,15]
[420378665,1776045092333,-607.06,0.00039178,15]
[420378666,1776045092342,-500.0,0.00039178,15]
[420378667,1776045092360,-936.88,0.00039178,15]
[420378668,1776045092371,-500.0,0.00039178,15]
[420378669,1776045092380,-500.0,0.00039178,15]
[420378670,1776045092403,-1589.56,0.00039178,15]
[420378671,1776045092413,-1546.76,0.00039178,15]
[420378672,1776045092423,-937.76,0.00039178,15]
[420378673,1776045092442,-500.0,0.00039178,15]
[420378674,1776045092452,-656.6,0.00039178,15]
[420378675,1776045092612,-616.48,0.00039178,15]
[420378676,1776045092624,-551.84,0.00039178,15]
[420378677,1776045092636,-538.22,0.00039178,15]
[420378678,1776045092649,-500.0,0.00039178,15]
[420378679,1776045092663,-552.35,0.00039178,30]
[420378680,1776045092672,-500.0,0.00039178,15]
[420378681,1776045092683,-500.0,0.00039178,15]
[420378682,1776045092704,-518.24,0.00039178,15]
[420378683,1776045092716,-500.0,0.00039178,15]
[420378684,1776045092736,-500.0,0.00039178,15]
[420378685,1776045092746,-845.43,0.00039178,15]
[420378686,1776045092765,-500.0,0.00039178,15]
[420378687,1776045092809,-500.0,0.00039178,15]
[420378688,1776045092829,-1323.56,0.00039178,15]
[420378689,1776045092859,-1364.85,0.00039178,15]
[420378690,1776045092894,-1903.17,0.00039178,15]
[420378691,1776045092915,-500.0,0.00039178,15]
[420378692,1776045092933,-590.95,0.00039178,15]
[420378693,1776045093002,-2118.26,0.00039178,15]
[420378694,1776045093018,-1067.1,0.00039178,7]
[420378695,1776045093060,-1021.75,0.00039178,15]
[420378696,1776045093089,-1028.39,0.00039178,15]
[420378697,1776045093106,-500.0,0.00039178,15]
[420378698,1776045093142,-212.16864774,0.00039178,15]
[420378699,1776045093156,-1047.56,0.00039178,15]
[420378700,1776045093211,-783.46,0.00039178,15]
[420378701,1776045093251,-645.13,0.00039178,15]
[420378702,1776045093263,-500.0,0.00039178,15]
[420378703,1776045093273,-500.0,0.00039178,7]
[420378704,1776045093290,-500.0,0.00039178,15]
[420378705,1776045093309,-1645.68,0.00039178,15]
[420378706,1776045093320,-530.83,0.00039178,15]
[420378707,1776045093345,-1228.63,0.00039178,15]
[420378708,1776045093355,-500.0,0.00039178,15]
[420378709,1776045093366,-535.68,0.00039178,15]
[420378710,1776045093388,-500.0,0.00039178,15]
[420378711,1776045093398,-869.9,0.00039178,15]
[420378712,1776045093407,-500.0,0.00039178,15]
[420378713,1776045093428,-2934.93,0.00039178,15]
[420378714,1776045093438,-739.62,0.00039178,10]
[420378715,1776045093451,-557.93,0.00039178,15]
[420378716,1776045093477,-500.0,0.00039178,15]
[420378717,1776045093487,-500.0,0.00039178,15]
[420378718,1776045093497,-500.0,0.00039178,15]
[420378719,1776045093515,-596.15,0.00039178,15]
[420378720,1776045093526,-2291.01,0.00039178,15]
[420378721,1776045093537,-500.0,0.00039178,15]
[420378722,1776045093547,-1647.84,0.00039178,15]
[420378723,1776045093570,-500.0,0.00039178,120]
[420378724,1776045093580,-562.41,0.00039178,15]
[420378725,1776045093591,-500.0,0.00039178,15]
[420378726,1776045093615,-1753.08832297,0.00039178,15]
[420378727,1776045094381,-167.99167703,0.00039178,15]
[420378728,1776045094392,-500.0,0.00039178,15]
[420378729,1776045094434,-739.60438155,0.00039178,15]
[420378730,1776045094446,-453.03561845,0.00039178,15]
[420378731,1776045094460,-46.96438155,0.00039178,15]
[420378732,1776045094485,-552.24999999,0.00039178,15]
[420378733,1776045094511,-7.08561846,0.00039178,15]
[420378734,1776045094523,-375.78117818,0.00039178,15]
[420378735,1776045094534,-944.95,0.00039178,15]
[420378736,1776045094548,-500.0,0.00039178,15]
[420378737,1776045094557,-1347.73,0.00039178,15]
[420378738,1776045094570,-818.57,0.00039178,15]
[420378739,1776045094588,-198.34440306,0.00039178,15]
[420378740,1776045094617,-500.0,0.00039178,15]
[420378741,1776045094626,-720.41,0.00039178,15]
[420378742,1776045094638,-570.58,0.00039178,15]
[420378743,1776045094661,-534.25,0.00039178,15]
[420378744,1776045094670,-574.61,0.00039178,15]
[420378745,1776045094681,-451.70392753,0.00039178,15]
[420378746,1776045094695,-500.0,0.00039178,15]
[420378747,1776045094710,-726.29,0.00039178,15]
[420378748,1776045094719,-756.84,0.00039178,15]
[420378749,1776045094734,-500.0,0.00039178,15]
[420378750,1776045094748,-1455.8,0.00039178,15]
[420378751,1776045094760,-1740.92,0.00039178,15]
[420378752,1776045094773,-1211.46,0.00039178,15]
[420378753,1776045094783,-500.0,0.00039178,15]
[420378754,1776045094798,-716.37,0.00039178,15]
[420378755,1776045094807,-975.01,0.00039178,15]
[420378756,1776045094819,-500.0,0.00039178,15]
[420378757,1776045094833,-256.84783131,0.00039178,15]
[420378758,1776045094842,-500.0,0.00039178,15]
[420378759,1776045094860,-519.23,0.00039178,15]
[420378760,1776045094869,-1341.38,0.00039178,15]
[420378761,1776045094879,-500.0,0.00039178,15]
[420378762,1776045094893,-500.0,0.00039178,15]
[420378763,1776045094909,-377.34469874,0.00039178,15]
[420378764,1776045094922,-500.0,0.00039178,15]
[420378765,1776045094932,-1016.54,0.00039178,15]
[420378766,1776045094941,-1767.74,0.00039178,15]
[420378767,1776045094955,-500.0,0.00039178,15]
[420378768,1776045094965,-826.92,0.00039178,15]
[420378769,1776045094977,-623.55,0.00039178,15]
[420378770,1776045094986,-942.64,0.00039178,15]
[420378771,1776045095001,-500.0,0.00039178,15]
[420378772,1776045095011,-500.0,0.00039178,15]
[420378773,1776045095021,-547.63,0.00039178,15]
[420378774,1776045095031,-623.88,0.00039178,15]
[420378775,1776045095045,-1323.01,0.00039178,15]
[420378776,1776045095065,-877.39,0.00039178,15]
[420378777,1776045095075,-539.4,0.00039178,15]
[420378778,1776045095084,-1572.86,0.00039178,10]
[420378779,1776045095100,-500.0,0.00039178,15]
[420378780,1776045095109,-603.50949417,0.00039178,15]
[420378781,1776045095119,-769.05,0.00039178,15]
[420378782,1776045095135,-500.0,0.00039178,15]
[420378783,1776045095151,-1302.03,0.00039178,15]
[420378784,1776045095162,-882.58,0.00039178,15]
[420378785,1776045095171,-500.0,0.00039178,15]
[420378786,1776045095188,-500.0,0.00039178,15]
[420378787,1776045095197,-737.29,0.00039178,15]
[420378788,1776045095209,-579.26,0.00039178,15]
[420378789,1776045095228,-500.0,0.00039178,15]
[420378790,1776045095238,-850.8,0.00039178,15]
[420378791,1776045095260,-1330.57,0.00039178,15]
[420378792,1776045095271,-890.12,0.00039178,15]
[420378793,1776045095291,-457.24490444,0.00039178,15]
[420378794,1776045095303,-1205.8,0.00039178,15]
[420378795,1776045095314,-1151.94,0.00039178,15]
[420378796,1776045095329,-500.0,0.00039178,15]
[420378797,1776045095362,-500.0,0.00039178,15]
[420378798,1776045095386,-500.0,0.00039178,15]
[420378799,1776045095399,-1291.49,0.00039178,15]
[420378800,1776045095408,-1655.72,0.00039178,15]
[420378801,1776045095460,-500.0,0.00039178,15]
[420378802,1776045095470,-500.0,0.00039178,15]
[420378803,1776045095482,-785.47,0.00039178,15]
[420378804,1776045095493,-500.0,0.00039178,15]
[420378805,1776045095512,-500.0,0.00039178,15]
[420378806,1776045095522,-552.43,0.00039178,15]
[420378807,1776045095532,-500.0,0.00039178,15]
[420378808,1776045095552,-627.19925317,0.00039178,15]
[420378809,1776045095574,-668.46,0.00039178,15]
[420378810,1776045095583,-500.0,0.00039178,15]
[420378811,1776045095967,-845.76,0.00039178,15]
[420378812,1776045095985,-968.44,0.00039178,15]
[420378813,1776045096004,-500.0,0.00039178,15]
[420378814,1776045096015,-500.0,0.00039178,15]
[420378815,1776045096034,-1079.06,0.00039178,15]
[420378816,1776045096046,-500.0,0.00039178,15]
[420378817,1776045096056,-500.0,0.00039178,15]
[420378818,1776045096074,-500.0,0.00039178,15]
[420378819,1776045096104,-1246.57,0.00039178,15]
[420378820,1776045096117,-500.0,0.00039178,15]
[420378821,1776045096141,-500.0,0.00039178,15]
[420378822,1776045096154,-500.0,0.00039178,15]
[420378823,1776045096168,-1019.11,0.00039178,15]
[420378824,1776045096187,-865.28,0.00039178,15]
[420378825,1776045096198,-1606.63,0.00039178,15]
[420378826,1776045096224,-500.0,0.00039178,15]
[420378827,1776045096241,-500.0,0.00039178,15]
[420378828,1776045096268,-834.91,0.00039178,15]
[420378829,1776045096299,-500.0,0.00039178,15]
[420378830,1776045096315,-500.0,0.00039178,15]
[420378831,1776045096340,-500.0,0.00039178,15]
[420378832,1776045096350,-678.63,0.00039178,15]
[420378833,1776045096376,-2614.37,0.00039178,15]
[420378834,1776045096388,-500.0,0.00039178,15]
[420378835,1776045096398,-500.0,0.00039178,15]
[420378836,1776045096425,-549.78,0.00039178,15]
[420378837,1776045096435,-1107.9,0.00039178,15]
[420378838,1776045096460,-1405.99,0.00039178,15]
[420378839,1776045096470,-732.06,0.00039178,15]
[420378840,1776045096480,-500.0,0.00039178,15]
[420378841,1776045096498,-500.0,0.00039178,15]
[420378842,1776045096509,-500.0,0.00039178,15]
[420378843,1776045096519,-782.13,0.00039178,15]
[420378844,1776045096530,-1700.7,0.00039178,15]
[420378845,1776045096551,-500.0,0.00039178,15]
[420378846,1776045096561,-500.0,0.00039178,15]
[420378847,1776045096571,-500.0,0.00039178,15]
[420378848,1776045096592,-1623.45,0.00039178,15]
[420378849,1776045096603,-1554.9,0.00039178,15]
[420378850,1776045096612,-1351.18,0.00039178,15]
[420378851,1776045096622,-500.0,0.00039178,15]
[420378852,1776045096636,-500.0,0.00039178,15]
[420378853,1776045096647,-284.39333258,0.00039178,15]
[420378854,1776045096656,-658.74,0.00039178,15]
[420378855,1776045096666,-500.0,0.00039178,15]
[420378856,1776045096680,-500.0,0.00039178,15]
[420378857,1776045096692,-585.16,0.00039178,2]
[420378858,1776045096702,-500.0,0.00039178,15]
[420378859,1776045096712,-500.0,0.00039178,15]
[420378860,1776045096723,-997.66,0.00039178,15]
[420378861,1776045096737,-1937.76,0.00039178,15]
[420378862,1776045096749,-151.0,0.00039178,30]
[420378863,1776045096759,-167.23,0.00039178,15]
[420378864,1776045096775,-151.0,0.00039178,30]
[420378865,1776045096789,-500.0,0.00039178,15]
[420378866,1776045096798,-500.0,0.00039178,15]
[420378867,1776045096818,-151.0,0.00039178,30]
[420378868,1776045096835,-251.272192,0.00039178,30]
[420378869,1776045096848,-500.0,0.00039178,15]
[420378870,1776045096873,-1005.89,0.00039178,15]
[420378871,1776045096885,-157.541182,0.00039178,30]
[420378872,1776045096908,-500.0,0.00039178,15]
[420378873,1776045096928,-500.0,0.00039178,15]
[420378874,1776045096940,-500.0,0.00039178,15]
[420378875,1776045096969,-151.0,0.00039178,30]
[420378876,1776045096979,-1043.83,0.00039178,15]
[420378877,1776045096992,-585.35,0.00039178,7]
[420378878,1776045097018,-151.0,0.00039178,30]
[420378879,1776045097028,-500.0,0.00039178,15]
[420378880,1776045097038,-1218.53,0.00039178,15]
[420378881,1776045097055,-500.0,0.00039178,15]
[420378882,1776045097066,-570.69,0.00039178,15]
[420378883,1776045097078,-500.0,0.00039178,15]
[420378884,1776045097094,-932.89,0.00039178,15]
[420378885,1776045097104,-1071.77,0.00039178,15]
[420378886,1776045097116,-500.0,0.00039178,15]
[420378887,1776045097134,-660.82,0.00039178,15]
[420378888,1776045097146,-500.0,0.00039178,15]
[420378889,1776045097161,-500.0,0.00039178,15]
[420378890,1776045097183,-500.0,0.00039178,15]
[420378891,1776045097196,-743.09,0.00039178,15]
[420378892,1776045097225,-938.46,0.00039178,15]
[420378893,1776045097240,-991.36,0.00039178,15]
[420378894,1776045097278,-675.2,0.00039178,15]
[420378895,1776045097300,-500.0,0.00039178,15]
[420378896,1776045097323,-500.0,0.00039178,15]
[420378897,1776045097341,-500.0,0.00039178,15]
[420378898,1776045097361,-181.745951,0.00039178,30]
[420378899,1776045097374,-626.94,0.00039178,15]
[420378900,1776045097395,-896.46,0.00039178,15]
[420378901,1776045097406,-500.0,0.00039178,15]
[420378902,1776045097430,-500.0,0.00039178,15]
[420378903,1776045097449,-1035.43,0.00039178,15]
[420378904,1776045097463,-1018.25,0.00039178,15]
[420378905,1776045097485,-500.0,0.00039178,15]
[420378906,1776045097495,-577.5,0.00039178,15]
[420378907,1776045097507,-1169.73,0.00039178,15]
[420378908,1776045097531,-500.0,0.00039178,15]
[420378909,1776045097544,-2236.14,0.00039178,15]
[420378910,1776045097554,-576.56,0.00039178,15]
[420378911,1776045097591,-500.0,0.00039178,15]
[420378912,1776045097602,-1490.06,0.00039178,15]
[420378913,1776045097611,-500.0,0.00039178,15]
[420378914,1776045097634,-500.0,0.00039178,15]
[420378915,1776045097644,-500.0,0.00039178,15]
[420378916,1776045097654,-565.27,0.00039178,15]
[420378917,1776045097672,-5351.41,0.00039178,15]
[420378918,1776045097684,-1227.64,0.00039178,15]
[420378919,1776045097694,-500.0,0.00039178,15]
[420378920,1776045097706,-1153.49,0.00039178,15]
[420378921,1776045097722,-792.92,0.00039178,15]
[420378922,1776045097732,-1232.78,0.00039178,15]
[420378923,1776045097741,-151.0,0.00039178,30]
[420378924,1776045097751,-372.04661677,0.00039178,15]
[420378925,1776045097762,-500.0,0.00039178,15]
[420378926,1776045097773,-500.0,0.00039178,15]
[420378927,1776045097784,-1300.34,0.00039178,15]
[420378928,1776045097794,-1195.56,0.00039178,15]
[420378929,1776045097806,-500.0,0.00039178,15]
[420378930,1776045097818,-1737.89,0.00039178,15]
[420378931,1776045097829,-1096.46,0.00039178,14]
[420378932,1776045097844,-500.0,0.00039178,15]
[420378933,1776045097856,-500.0,0.00039178,15]
[420378934,1776045097866,-500.0,0.00039178,15]
[420378935,1776045097878,-1063.5,0.00039178,15]
[420378936,1776045097891,-500.0,0.00039178,15]
[420378937,1776045097902,-1093.61,0.00039178,15]
[420378938,1776045097911,-1607.39,0.00039178,15]
[420378939,1776045097925,-500.0,0.00039178,15]
[420378940,1776045097937,-1099.95,0.00039178,15]
[420378941,1776045097959,-863.32,0.00039178,15]
[420378942,1776045097968,-500.0,0.00039178,15]
[420378943,1776045097989,-500.0,0.00039178,15]
[420378944,1776045098006,-500.0,0.00039178,15]
[420378945,1776045098016,-500.0,0.00039178,15]
[420378946,1776045098030,-500.0,0.00039178,15]
[420378947,1776045098049,-500.0,0.00039178,15]
[420378948,1776045098060,-500.0,0.00039178,15]
[420378949,1776045098083,-500.0,0.00039178,15]
[420378950,1776045098094,-1836.11,0.00039178,15]
[420378951,1776045098106,-500.0,0.00039178,15]
[420378952,1776045098131,-1786.42,0.00039178,15]
[420378953,1776045098141,-850.37,0.00039178,15]
[420378954,1776045098156,-500.0,0.00039178,15]
[420378955,1776045098175,-500.0,0.00039178,15]
[420378956,1776045098187,-151.0,0.00039178,30]
[420378957,1776045098217,-500.0,0.00039178,15]
[420378958,1776045098229,-1573.85,0.00039178,15]
[420378959,1776045098254,-500.0,0.00039178,15]
[420378960,1776045098278,-285.965964,0.00039178,30]
[420378961,1776045098344,-151.0,0.00039178,30]
[420378962,1776045098376,-703.96,0.00039178,15]
[420378963,1776045098402,-708.76,0.00039178,15]
[420378964,1776045098435,-500.0,0.00039178,15]
[420378965,1776045098456,-2482.72,0.00039178,15]
[420378966,1776045098485,-285.965964,0.00039178,30]
[420378967,1776045098517,-500.0,0.00039178,15]
[420378968,1776045098527,-291.314682,0.00039178,30]
[420378969,1776045098542,-681.28,0.00039178,15]
[420378970,1776045098556,-500.0,0.00039178,15]
[420378971,1776045098565,-511.64,0.00039178,15]
[420378972,1776045098575,-500.0,0.00039178,15]
[420378973,1776045098598,-634.64,0.00039178,15]
[420378974,1776045098608,-1786.49,0.00039178,15]
[420378975,1776045098619,-285.965964,0.00039178,30]
[420378976,1776045098636,-490.1758142,0.00039178,15]
[420378977,1776045098650,-1939.57,0.00039178,15]
[420378978,1776045098659,-500.0,0.00039178,15]
[420378979,1776045098672,-285.965954,0.00039178,30]
[420378980,1776045098702,-1704.06,0.00039178,15]
[420378981,1776045098715,-500.0,0.00039178,15]
[420378982,1776045098728,-593.1,0.00039178,15]
[420378983,1776045098756,-1279.99,0.00039178,15]
[420378984,1776045098766,-990.68,0.00039178,15]
[420378985,1776045098792,-621.13,0.00039178,15]
[420378986,1776045098802,-1016.9,0.00039178,15]
[420378987,1776045098831,-500.0,0.00039178,15]
[420378988,1776045098863,-500.0,0.00039178,15]
[420378989,1776045098872,-151.0,0.00039178,30]
[420378990,1776045098907,-526.72325065,0.00039178,15]
[420378991,1776045098922,-1376.44,0.00039178,15]
[420378992,1776045098942,-500.0,0.00039178,15]
[420378993,1776045098959,-500.0,0.00039178,15]
[420378994,1776045098971,-664.18,0.00039178,15]
[420378995,1776045098985,-557.26,0.00039178,15]
[420378996,1776045099009,-500.0,0.00039178,15]
[420378997,1776045099021,-500.0,0.00039178,15]
[420378998,1776045099039,-500.0,0.00039178,15]
[420378999,1776045099048,-595.56,0.00039178,15]
[420379000,1776045099064,-1777.69,0.00039178,15]
[420379001,1776045099075,-2093.58,0.00039178,15]
[420379002,1776045099084,-1598.74,0.00039178,15]
[420379003,1776045099095,-500.0,0.00039178,15]
[420379004,1776045099111,-500.0,0.00039178,15]
[420379005,1776045099120,-1209.55,0.00039178,15]
[420379006,1776045099131,-500.0,0.00039178,15]
[420379007,1776045099142,-151.0,0.00039178,30]
[420379008,1776045099158,-777.2,0.00039178,15]
[420379009,1776045099167,-500.0,0.00039178,15]
[420379010,1776045099176,-1378.49,0.00039178,15]
[420379011,1776045099186,-151.0,0.00039178,30]
[420379012,1776045099199,-500.0,0.00039178,15]
[420379013,1776045099210,-801.57,0.00039178,15]
[420379014,1776045099220,-790.35,0.00039178,15]
[420379015,1776045099229,-500.0,0.00039178,15]
[420379016,1776045099247,-1180.46,0.00039178,15]
[420379017,1776045099257,-971.25,0.00039178,15]
[420379018,1776045099267,-556.44,0.00039178,15]
[420379019,1776045099277,-1692.61,0.00039178,15]
[420379020,1776045099293,-500.0,0.00039178,15]
[420379021,1776045099302,-279.865299,0.00039178,30]
[420379022,1776045099312,-40999.33,0.00039178,15]
[420379023,1776045099321,-519.22,0.00039178,15]
[420379024,1776045099337,-753.08,0.00039178,15]
[420379025,1776045099348,-500.0,0.00039178,15]
[420379026,1776045099357,-731.76,0.00039178,15]
[420379027,1776045099374,-548.25,0.00039178,15]
[420379028,1776045099383,-279.865299,0.00039178,30]
[420379029,1776045099392,-500.0,0.00039178,15]
[420379030,1776045099402,-151.0,0.00039178,30]
[420379031,1776045099420,-500.0,0.00039178,15]
[420379032,1776045099429,-454.44,0.00039178,15]
[420379033,1776045099439,-279.865299,0.00039178,30]
[420379034,1776045099453,-151.0,0.00039178,30]
[420379035,1776045099466,-500.0,0.00039178,15]
[420379036,1776045099474,-279.865299,0.00039178,30]
[420379037,1776045099487,-500.0,0.00039178,15]
[420379038,1776045099505,-1723.04,0.00039178,15]
[420379039,1776045099515,-930.79,0.00039178,15]
[420379040,1776045099544,-2482.22,0.00039178,15]
[420379041,1776045099554,-151.0,0.00039178,30]
[420379042,1776045099566,-500.0,0.00039178,15]
[420379043,1776045099582,-837.01,0.00039178,15]
[420379044,1776045099592,-151.0,0.00039178,30]
[420379045,1776045099603,-151.0,0.00039178,30]
[420379046,1776045099626,-500.0,0.00039178,15]
[420379047,1776045099639,-500.0,0.00039178,15]
[420379048,1776045099650,-1211.68,0.00039178,15]
[420379049,1776045099668,-500.0,0.00039178,15]
[420379050,1776045099686,-398.010391,0.00039178,30]
[420379051,1776045099794,-839.33,0.00039178,15]
[420379052,1776045099808,-398.010391,0.00039178,30]
[420379053,1776045099833,-398.010391,0.00039178,30]
[420379054,1776045099844,-1016.77,0.00039178,15]
[420379055,1776045099858,-856.17,0.00039178,15]
[420379056,1776045099878,-151.0,0.00039178,30]
[420379057,1776045099887,-500.0,0.00039178,15]
[420379058,1776045099897,-500.0,0.00039178,15]
[420379059,1776045099927,-398.010391,0.00039178,30]
[420379060,1776045099936,-500.0,0.00039178,15]
[420379061,1776045099950,-151.0,0.00039178,30]
[420379062,1776045099959,-2086.07,0.00039178,15]
[420379063,1776045099974,-500.0,0.00039178,15]
[420379064,1776045099989,-1107.2,0.00039178,15]
[420379065,1776045099999,-500.0,0.00039178,15]
[420379066,1776045100011,-151.0,0.00039178,30]
[420379067,1776045100030,-1178.65,0.00039178,15]
[420379068,1776045100040,-827.32,0.00039178,15]
[420379069,1776045100049,-549.37,0.00039178,15]
[420379070,1776045100063,-967.31,0.00039178,15]
[420379071,1776045100075,-1075.52,0.00039178,15]
[420379072,1776045100086,-937.07,0.00039178,15]
[420379073,1776045100096,-681.45,0.00039178,15]
[420379074,1776045100119,-591.11022623,0.00039178,15]
[420379075,1776045100135,-689.45,0.00039178,15]
[420379076,1776045100150,-1533.25,0.00039178,15]
[420379077,1776045100162,-1631.15,0.00039178,15]
[420379078,1776045100184,-2081.03,0.00039178,15]
[420379079,1776045100208,-823.91,0.00039178,15]
[420379080,1776045100221,-1161.74,0.00039178,15]
[420379081,1776045100233,-151.0,0.00039178,30]
[420379082,1776045100245,-151.0,0.00039178,30]
[420379083,1776045100271,-1845.23,0.00039178,15]
[420379084,1776045100281,-3236.1,0.00039178,15]
[420379085,1776045100291,-587.26,0.00039178,15]
[420379086,1776045100315,-500.0,0.00039178,15]
[420379087,1776045100325,-500.0,0.00039178,15]
[420379088,1776045100334,-880.71,0.00039178,15]
[420379089,1776045100357,-500.0,0.00039178,15]
[420379090,1776045100366,-4046.5,0.00039178,14]
[420379091,1776045100377,-1878.04,0.00039178,15]
[420379092,1776045100392,-1045.2,0.00039178,15]
[420379093,1776045100401,-500.0,0.00039178,15]
[420379094,1776045100414,-213.73278836,0.00039178,15]
[420379095,1776045100423,-2362.5,0.00039178,15]
[420379096,1776045100436,-1752.16,0.00039178,15]
[420379097,1776045100446,-500.0,0.00039178,15]
[420379098,1776045100461,-1651.77,0.00039178,15]
[420379099,1776045100473,-500.0,0.00039178,15]
[420379100,1776045100484,-500.0,0.00039178,15]
[420379101,1776045100499,-886.36,0.00039178,15]
[420379102,1776045100509,-2500.71,0.00039178,15]
[420379103,1776045100519,-1171.0,0.00039178,15]
[420379104,1776045100529,-500.0,0.00039178,15]
[420379105,1776045100545,-519.88,0.00039178,15]
[420379106,1776045100558,-483.44055,0.00039178,30]
[420379107,1776045100570,-500.0,0.00039178,15]
[420379108,1776045100589,-500.0,0.00039178,15]
[420379109,1776045100599,-151.0,0.00039178,30]
[420379110,1776045100609,-915.35,0.00039178,15]
[420379111,1776045100632,-500.0,0.00039178,15]
[420379112,1776045100651,-444.11880986,0.00039178,15]